[Event "Late-Titled-Tuesday-Blitz-March-26-2024"]
[Site "Chess.com"]
[Date "2024.03.26"]
[Round "10"]
[White "gorgeous1083"]
[Black "salgadoLO"]
[Result "1-0"]
[WhiteElo "2072"]
[BlackElo "2157"]
[TimeControl "180+1"]
[EndTime "15:55:08 PDT"]
[Termination "gorgeous1083 won on time"]

1. d4 {[%clk 0:03:00.9]} 1... d5 {[%clk 0:02:56.4]} 2. c4 {[%clk 0:03:01.2]}
2... c6 {[%clk 0:02:56.6]} 3. Nf3 {[%clk 0:03:00]} 3... Nf6 {[%clk 0:02:56.7]}
4. Nc3 {[%clk 0:02:58.5]} 4... a6 {[%clk 0:02:56.8]} 5. e3 {[%clk 0:02:58.2]}
5... b5 {[%clk 0:02:56.3]} 6. cxd5 {[%clk 0:02:57.5]} 6... cxd5 {[%clk
0:02:57.2]} 7. Bd3 {[%clk 0:02:56.8]} 7... Bb7 {[%clk 0:02:55.4]} 8. a3 {[%clk
0:02:56.6]} 8... e6 {[%clk 0:02:54.8]} 9. O-O {[%clk 0:02:57]} 9... Nbd7 {[%clk
0:02:54]} 10. b4 {[%clk 0:02:49.8]} 10... Bd6 {[%clk 0:02:51.1]} 11. Bb2 {[%clk
0:02:48.1]} 11... O-O {[%clk 0:02:48.6]} 12. Ne2 {[%clk 0:02:48]} 12... Ne4
{[%clk 0:02:47.7]} 13. Ng3 {[%clk 0:02:44.8]} 13... f5 {[%clk 0:02:48.2]} 14.
Rc1 {[%clk 0:02:41.3]} 14... Qe7 {[%clk 0:02:38.5]} 15. Bb1 {[%clk 0:02:30.9]}
15... Nb6 {[%clk 0:02:36.1]} 16. Ne5 {[%clk 0:02:28.9]} 16... Nc4 {[%clk
0:02:35.7]} 17. Nxc4 {[%clk 0:02:27.2]} 17... bxc4 {[%clk 0:02:33.4]} 18. Nxe4
{[%clk 0:02:15.6]} 18... fxe4 {[%clk 0:02:34.3]} 19. f3 {[%clk 0:02:05.9]} 19...
Qh4 {[%clk 0:02:22.6]} 20. f4 {[%clk 0:02:01.9]} 20... Rf6 {[%clk 0:02:05.7]}
21. g3 {[%clk 0:01:58.5]} 21... Qh3 {[%clk 0:02:02.6]} 22. Qe2 {[%clk
0:01:54.6]} 22... Rff8 {[%clk 0:01:41.2]} 23. Bc2 {[%clk 0:01:52.3]} 23... a5
{[%clk 0:01:39.6]} 24. Qg2 {[%clk 0:01:50.6]} 24... Qf5 {[%clk 0:01:35.8]} 25.
Bc3 {[%clk 0:01:44.9]} 25... axb4 {[%clk 0:01:32.8]} 26. Bxb4 {[%clk 0:01:42.9]}
26... Bxb4 {[%clk 0:01:31.5]} 27. axb4 {[%clk 0:01:43.8]} 27... Ra3 {[%clk
0:01:29.6]} 28. Qe2 {[%clk 0:01:38.5]} 28... Rfa8 {[%clk 0:01:23.2]} 29. g4
{[%clk 0:01:32.7]} 29... Qf6 {[%clk 0:01:22.9]} 30. g5 {[%clk 0:01:29.4]} 30...
Qe7 {[%clk 0:01:21.3]} 31. Qd2 {[%clk 0:01:12.6]} 31... c3 {[%clk 0:01:16]} 32.
Qf2 {[%clk 0:01:01.9]} 32... Ba6 {[%clk 0:01:12.3]} 33. Rfe1 {[%clk 0:00:59]}
33... g6 {[%clk 0:01:08.4]} 34. Rb1 {[%clk 0:00:57.8]} 34... Bd3 {[%clk
0:01:07.2]} 35. Red1 {[%clk 0:00:53.8]} 35... Ra2 {[%clk 0:01:06.7]} 36. Rdc1
{[%clk 0:00:49.7]} 36... Rb2 {[%clk 0:01:00.6]} 37. Rxb2 {[%clk 0:00:44.3]}
37... cxb2 {[%clk 0:00:59.2]} 38. Rd1 {[%clk 0:00:40.7]} 38... Ra1 {[%clk
0:00:56]} 39. Qd2 {[%clk 0:00:38.1]} 39... b1=Q {[%clk 0:00:33.8]} 40. Bxb1
{[%clk 0:00:37.5]} 40... Rxb1 {[%clk 0:00:34.3]} 41. Rxb1 {[%clk 0:00:37.6]}
41... Bxb1 {[%clk 0:00:34.1]} 42. Qc1 {[%clk 0:00:37.9]} 42... Bd3 {[%clk
0:00:32]} 43. Qc8+ {[%clk 0:00:36.4]} 43... Kg7 {[%clk 0:00:31.4]} 44. Kg2
{[%clk 0:00:34.7]} 44... h6 {[%clk 0:00:25]} 45. h4 {[%clk 0:00:33.3]} 45...
hxg5 {[%clk 0:00:20.5]} 46. hxg5 {[%clk 0:00:33.5]} 46... Bb5 {[%clk 0:00:16.4]}
47. Qb8 {[%clk 0:00:32.4]} 47... Qd7 {[%clk 0:00:15.6]} 48. Qe5+ {[%clk
0:00:31.9]} 48... Kh7 {[%clk 0:00:14.4]} 49. Qf6 {[%clk 0:00:30.8]} 49... Ba6
{[%clk 0:00:10.8]} 50. Qf8 {[%clk 0:00:29.3]} 50... Qg7 {[%clk 0:00:08.2]} 51.
Qd6 {[%clk 0:00:28.5]} 51... Bc8 {[%clk 0:00:07]} 52. b5 {[%clk 0:00:27.4]}
52... Qd7 {[%clk 0:00:04.2]} 53. Qf8 {[%clk 0:00:24.4]} 53... e5 {[%clk
0:00:03.3]} 54. dxe5 {[%clk 0:00:23.4]} 54... Qg4+ {[%clk 0:00:02.5]} 55. Kf2
{[%clk 0:00:23.1]} 55... Qf3+ {[%clk 0:00:02.6]} 56. Kg1 {[%clk 0:00:23]} 56...
Qg3+ {[%clk 0:00:01.8]} 57. Kf1 {[%clk 0:00:23.2]} 1-0

[Event "Late-Titled-Tuesday-Blitz-March-26-2024"]
[Site "Chess.com"]
[Date "2024.03.26"]
[Round "10"]
[White "mishanick"]
[Black "ViIIagra"]
[Result "1-0"]
[WhiteElo "3054"]
[BlackElo "2898"]
[TimeControl "180+1"]
[EndTime "15:55:11 PDT"]
[Termination "mishanick won by resignation"]

1. d4 {[%clk 0:03:00.9]} 1... d6 {[%clk 0:02:57.3]} 2. e4 {[%clk 0:03:00.7]}
2... Nf6 {[%clk 0:02:57.5]} 3. f3 {[%clk 0:02:59.8]} 3... e5 {[%clk 0:02:53.7]}
4. d5 {[%clk 0:03:00.2]} 4... Be7 {[%clk 0:02:52.4]} 5. c4 {[%clk 0:02:57.2]}
5... O-O {[%clk 0:02:48.4]} 6. Bd3 {[%clk 0:02:57.8]} 6... c6 {[%clk 0:02:48.3]}
7. Nc3 {[%clk 0:02:56.7]} 7... a6 {[%clk 0:02:47.4]} 8. a4 {[%clk 0:02:54.5]}
8... a5 {[%clk 0:02:13.5]} 9. Be3 {[%clk 0:02:49]} 9... Na6 {[%clk 0:02:13.1]}
10. Nge2 {[%clk 0:02:49.1]} 10... Nd7 {[%clk 0:02:08.6]} 11. O-O {[%clk
0:02:41.8]} 11... Bg5 {[%clk 0:02:05.5]} 12. Bf2 {[%clk 0:02:40.6]} 12... Ndc5
{[%clk 0:02:02]} 13. Bb1 {[%clk 0:02:40.5]} 13... Nb4 {[%clk 0:02:01.9]} 14. Ra3
{[%clk 0:02:30.1]} 14... Qe7 {[%clk 0:01:59]} 15. Na2 {[%clk 0:02:14]} 15...
cxd5 {[%clk 0:01:48.6]} 16. cxd5 {[%clk 0:02:11.8]} 16... b6 {[%clk 0:01:47.5]}
17. Nac3 {[%clk 0:01:55]} 17... Ba6 {[%clk 0:01:45.5]} 18. Nb5 {[%clk
0:01:55.7]} 18... Bxb5 {[%clk 0:01:44.6]} 19. axb5 {[%clk 0:01:55.5]} 19... Rac8
{[%clk 0:01:44.6]} 20. Nc3 {[%clk 0:01:51.5]} 20... Rc7 {[%clk 0:01:34.3]} 21.
Qe2 {[%clk 0:01:50.4]} 21... Bh6 {[%clk 0:01:33.8]} 22. g3 {[%clk 0:01:50.2]}
22... Rfc8 {[%clk 0:01:32.5]} 23. Kg2 {[%clk 0:01:50]} 23... Qg5 {[%clk
0:01:31.9]} 24. Rd1 {[%clk 0:01:47.7]} 24... Qd8 {[%clk 0:01:19.8]} 25. Qf1
{[%clk 0:01:43.5]} 25... g6 {[%clk 0:01:13.1]} 26. h4 {[%clk 0:01:42.7]} 26...
Kg7 {[%clk 0:01:00.8]} 27. Qh1 {[%clk 0:01:42.2]} 27... Qf6 {[%clk 0:00:59.7]}
28. Qh3 {[%clk 0:01:40.2]} 28... Qe7 {[%clk 0:00:46.6]} 29. h5 {[%clk
0:01:31.8]} 29... Qd7 {[%clk 0:00:46.3]} 30. Qh4 {[%clk 0:01:27.6]} 30... g5
{[%clk 0:00:39.3]} 31. Qh3 {[%clk 0:01:24.2]} 31... g4 {[%clk 0:00:29.4]} 32.
Qxg4+ {[%clk 0:00:46.9]} 32... Qxg4 {[%clk 0:00:29.2]} 33. fxg4 {[%clk
0:00:47.8]} 33... Bg5 {[%clk 0:00:26.1]} 34. Ne2 {[%clk 0:00:48.1]} 34... h6
{[%clk 0:00:25.8]} 35. Ng1 {[%clk 0:00:45.2]} 35... f6 {[%clk 0:00:25.1]} 36.
Nf3 {[%clk 0:00:44.8]} 36... Kf7 {[%clk 0:00:25.4]} 37. Nh4 {[%clk 0:00:43.3]}
37... Nb7 {[%clk 0:00:13.5]} 38. Bxb6 {[%clk 0:00:34.4]} 38... Rc1 {[%clk
0:00:12.8]} 39. Rxc1 {[%clk 0:00:35]} 39... Rxc1 {[%clk 0:00:13.5]} 40. Bd3
{[%clk 0:00:35.6]} 40... Rd1 {[%clk 0:00:09.9]} 41. Be2 {[%clk 0:00:20.6]} 41...
Rd2 {[%clk 0:00:10.3]} 42. Kf1 {[%clk 0:00:20.5]} 42... Rxb2 {[%clk 0:00:10.3]}
43. Nf5 {[%clk 0:00:20.2]} 43... Ke8 {[%clk 0:00:09.4]} 44. Rc3 {[%clk
0:00:19.8]} 44... Rc2 {[%clk 0:00:06.7]} 45. Rxc2 {[%clk 0:00:07.8]} 45... Nxc2
{[%clk 0:00:07.6]} 46. Bd1 {[%clk 0:00:08.4]} 46... Nb4 {[%clk 0:00:06.2]} 47.
Ke2 {[%clk 0:00:08]} 47... Kd7 {[%clk 0:00:05.4]} 48. Bb3 {[%clk 0:00:05.6]}
48... Nc5 {[%clk 0:00:02.2]} 49. Bxc5 {[%clk 0:00:05.9]} 49... dxc5 {[%clk
0:00:03.1]} 50. d6 {[%clk 0:00:06.6]} 50... c4 {[%clk 0:00:02.5]} 51. Bxc4
{[%clk 0:00:07]} 51... a4 {[%clk 0:00:03.4]} 52. b6 {[%clk 0:00:06.4]} 52... a3
{[%clk 0:00:03.9]} 53. b7 {[%clk 0:00:06.8]} 53... Nc6 {[%clk 0:00:03.7]} 54.
Bb5 {[%clk 0:00:06.8]} 54... a2 {[%clk 0:00:03.1]} 55. b8=Q {[%clk 0:00:07.4]}
1-0

[Event "Late-Titled-Tuesday-Blitz-March-26-2024"]
[Site "Chess.com"]
[Date "2024.03.26"]
[Round "10"]
[White "xasid81"]
[Black "ThinkingSquares"]
[Result "1/2-1/2"]
[WhiteElo "2642"]
[BlackElo "2799"]
[TimeControl "180+1"]
[EndTime "15:55:12 PDT"]
[Termination "Game drawn - insufficient material"]

1. e4 {[%clk 0:03:00.9]} 1... c5 {[%clk 0:02:59.2]} 2. Nf3 {[%clk 0:03:00.5]}
2... e6 {[%clk 0:02:59.8]} 3. c3 {[%clk 0:03:00.7]} 3... d5 {[%clk 0:02:56.3]}
4. exd5 {[%clk 0:02:59.9]} 4... Qxd5 {[%clk 0:02:56.2]} 5. d4 {[%clk 0:02:55.2]}
5... Nf6 {[%clk 0:02:56.7]} 6. Be3 {[%clk 0:02:53.5]} 6... cxd4 {[%clk 0:02:56]}
7. Qxd4 {[%clk 0:02:53.3]} 7... Nc6 {[%clk 0:02:54.7]} 8. Qxd5 {[%clk
0:02:51.9]} 8... Nxd5 {[%clk 0:02:55.6]} 9. Bb5 {[%clk 0:02:46.7]} 9... Bd7
{[%clk 0:02:45.5]} 10. Nbd2 {[%clk 0:02:42.6]} 10... Nxe3 {[%clk 0:02:44.3]} 11.
fxe3 {[%clk 0:02:43.5]} 11... a6 {[%clk 0:02:40.4]} 12. Ba4 {[%clk 0:02:34.2]}
12... b5 {[%clk 0:02:27.2]} 13. Bc2 {[%clk 0:02:30.5]} 13... Bc5 {[%clk
0:02:19.5]} 14. Nd4 {[%clk 0:02:29.6]} 14... Ne5 {[%clk 0:02:17.2]} 15. Ke2
{[%clk 0:02:10.1]} 15... Ke7 {[%clk 0:02:17]} 16. N2f3 {[%clk 0:02:03.1]} 16...
Nc4 {[%clk 0:02:15.9]} 17. b3 {[%clk 0:02:02.6]} 17... Nb6 {[%clk 0:02:03.6]}
18. Be4 {[%clk 0:01:52.4]} 18... Ra7 {[%clk 0:01:51.6]} 19. Ne5 {[%clk
0:01:50.9]} 19... Rc7 {[%clk 0:01:32.9]} 20. Nxd7 {[%clk 0:01:43.4]} 20... Nxd7
{[%clk 0:01:29.9]} 21. a4 {[%clk 0:01:27.8]} 21... Bxd4 {[%clk 0:01:18.7]} 22.
cxd4 {[%clk 0:01:24.6]} 22... Nf6 {[%clk 0:01:14.2]} 23. Bd3 {[%clk 0:01:19.5]}
23... Nd5 {[%clk 0:01:03.3]} 24. Kd2 {[%clk 0:01:17.8]} 24... Rb8 {[%clk
0:00:38]} 25. axb5 {[%clk 0:01:13.7]} 25... axb5 {[%clk 0:00:38.9]} 26. Rhc1
{[%clk 0:01:00.6]} 26... Rxc1 {[%clk 0:00:37.3]} 27. Rxc1 {[%clk 0:01:00.2]}
27... b4 {[%clk 0:00:38]} 28. Ra1 {[%clk 0:00:56.2]} 28... Rb7 {[%clk
0:00:36.6]} 29. Be4 {[%clk 0:00:54]} 29... Kd6 {[%clk 0:00:22.3]} 30. Bxd5
{[%clk 0:00:47.5]} 30... Kxd5 {[%clk 0:00:22]} 31. Ra5+ {[%clk 0:00:42.9]} 31...
Kd6 {[%clk 0:00:22.3]} 32. Ra6+ {[%clk 0:00:39.4]} 32... Kd5 {[%clk 0:00:22.5]}
33. Kd3 {[%clk 0:00:37.8]} 33... f5 {[%clk 0:00:22.4]} 34. Ra5+ {[%clk
0:00:36.2]} 34... Kd6 {[%clk 0:00:22.8]} 35. Kc4 {[%clk 0:00:35.2]} 35... g5
{[%clk 0:00:21]} 36. Ra6+ {[%clk 0:00:33.6]} 36... Ke7 {[%clk 0:00:20.8]} 37. d5
{[%clk 0:00:27.1]} 37... exd5+ {[%clk 0:00:18]} 38. Kxd5 {[%clk 0:00:26.4]}
38... Kf7 {[%clk 0:00:18.1]} 39. Rc6 {[%clk 0:00:20.3]} 39... Re7 {[%clk
0:00:17.5]} 40. Kd4 {[%clk 0:00:17.7]} 40... Re4+ {[%clk 0:00:17]} 41. Kd3
{[%clk 0:00:17.8]} 41... h5 {[%clk 0:00:17.3]} 42. Rc4 {[%clk 0:00:15.7]} 42...
Re5 {[%clk 0:00:17.2]} 43. Rxb4 {[%clk 0:00:15.9]} 43... Rd5+ {[%clk 0:00:17.5]}
44. Rd4 {[%clk 0:00:16]} 44... Ra5 {[%clk 0:00:17.5]} 45. b4 {[%clk 0:00:14.5]}
45... Ra2 {[%clk 0:00:17.4]} 46. b5 {[%clk 0:00:14]} 46... Rb2 {[%clk
0:00:17.4]} 47. Kc4 {[%clk 0:00:13.8]} 47... Rxg2 {[%clk 0:00:17]} 48. Kc5
{[%clk 0:00:14.5]} 48... Rc2+ {[%clk 0:00:16.9]} 49. Rc4 {[%clk 0:00:14]} 49...
Rxc4+ {[%clk 0:00:16.7]} 50. Kxc4 {[%clk 0:00:14.9]} 50... Ke6 {[%clk
0:00:17.4]} 51. Kd4 {[%clk 0:00:14.4]} 51... Kd6 {[%clk 0:00:17.5]} 52. b6
{[%clk 0:00:14.3]} 52... h4 {[%clk 0:00:16.9]} 53. b7 {[%clk 0:00:12.5]} 53...
Kc7 {[%clk 0:00:17.1]} 54. Ke5 {[%clk 0:00:12.6]} 54... g4 {[%clk 0:00:17.5]}
55. Kf4 {[%clk 0:00:13]} 55... Kxb7 {[%clk 0:00:16.8]} 56. e4 {[%clk 0:00:13.5]}
56... fxe4 {[%clk 0:00:17.2]} 57. Kxg4 {[%clk 0:00:13.5]} 57... Kc6 {[%clk
0:00:16.9]} 58. Kxh4 {[%clk 0:00:11.6]} 58... Kd5 {[%clk 0:00:17.2]} 59. Kg3
{[%clk 0:00:12]} 59... Kd4 {[%clk 0:00:17.7]} 60. Kf2 {[%clk 0:00:12.4]} 60...
e3+ {[%clk 0:00:16.8]} 61. Ke2 {[%clk 0:00:12]} 61... Ke4 {[%clk 0:00:17.2]} 62.
h4 {[%clk 0:00:12.9]} 62... Kf4 {[%clk 0:00:17.1]} 63. h5 {[%clk 0:00:13.8]}
63... Kg5 {[%clk 0:00:17.7]} 64. Kxe3 {[%clk 0:00:14.1]} 64... Kh6 {[%clk
0:00:18.6]} 65. Kf4 {[%clk 0:00:14.2]} 65... Kxh5 {[%clk 0:00:19.5]} 1/2-1/2

[Event "Late-Titled-Tuesday-Blitz-March-26-2024"]
[Site "Chess.com"]
[Date "2024.03.26"]
[Round "10"]
[White "vladoboch"]
[Black "Stanbad1"]
[Result "1-0"]
[WhiteElo "2501"]
[BlackElo "2627"]
[TimeControl "180+1"]
[EndTime "15:55:12 PDT"]
[Termination "vladoboch won on time"]

1. e4 {[%clk 0:03:00.9]} 1... c6 {[%clk 0:02:58.8]} 2. d4 {[%clk 0:03:00.4]}
2... d5 {[%clk 0:02:58.7]} 3. e5 {[%clk 0:03:00.4]} 3... Bf5 {[%clk 0:02:58.2]}
4. h4 {[%clk 0:03:00.1]} 4... h5 {[%clk 0:02:57.9]} 5. c4 {[%clk 0:02:51.8]}
5... e6 {[%clk 0:02:56.9]} 6. Nc3 {[%clk 0:02:48]} 6... dxc4 {[%clk 0:02:55.9]}
7. Bxc4 {[%clk 0:02:47.9]} 7... Nd7 {[%clk 0:02:55.1]} 8. Nge2 {[%clk
0:02:47.8]} 8... Ne7 {[%clk 0:02:52.3]} 9. Bg5 {[%clk 0:02:46.1]} 9... Qb6
{[%clk 0:02:51.1]} 10. O-O {[%clk 0:02:44.1]} 10... O-O-O {[%clk 0:02:49.7]} 11.
Ng3 {[%clk 0:02:35.6]} 11... Bg6 {[%clk 0:02:49.7]} 12. Nge4 {[%clk 0:02:33.4]}
12... Nxe5 {[%clk 0:02:45.2]} 13. dxe5 {[%clk 0:02:26.6]} 13... Rxd1 {[%clk
0:02:44.2]} 14. Raxd1 {[%clk 0:02:26.1]} 14... Nd5 {[%clk 0:02:43.4]} 15. Nd6+
{[%clk 0:02:00.7]} 15... Bxd6 {[%clk 0:02:41.9]} 16. exd6 {[%clk 0:02:01.6]}
16... Kd7 {[%clk 0:02:29.9]} 17. Na4 {[%clk 0:01:52.6]} 17... Qb4 {[%clk
0:02:17.4]} 18. Bb3 {[%clk 0:01:29.4]} 18... Qxd6 {[%clk 0:02:13.2]} 19. Be3
{[%clk 0:01:29.9]} 19... b6 {[%clk 0:02:11]} 20. Bd4 {[%clk 0:01:26.2]} 20... f6
{[%clk 0:01:53.7]} 21. Rfe1 {[%clk 0:01:25.7]} 21... Kc8 {[%clk 0:01:51.1]} 22.
Nc3 {[%clk 0:01:21.8]} 22... Kb7 {[%clk 0:01:50.5]} 23. a4 {[%clk 0:01:20.4]}
23... a5 {[%clk 0:01:47.4]} 24. Nxd5 {[%clk 0:01:11.6]} 24... cxd5 {[%clk
0:01:43.1]} 25. Bc3 {[%clk 0:01:03.4]} 25... Rc8 {[%clk 0:01:40.6]} 26. Rxe6
{[%clk 0:01:02.1]} 26... Qxe6 {[%clk 0:01:11.7]} 27. Bxd5+ {[%clk 0:01:02.1]}
27... Qxd5 {[%clk 0:01:12.4]} 28. Rxd5 {[%clk 0:01:03]} 28... Bf7 {[%clk
0:01:00.9]} 29. Rd3 {[%clk 0:00:58.3]} 29... Be8 {[%clk 0:00:55]} 30. b3 {[%clk
0:00:50.7]} 30... Bf7 {[%clk 0:00:54.4]} 31. Bd2 {[%clk 0:00:45.4]} 31... Rc7
{[%clk 0:00:50.8]} 32. Bf4 {[%clk 0:00:45.4]} 32... Re7 {[%clk 0:00:46.8]} 33.
f3 {[%clk 0:00:41.9]} 33... Kc6 {[%clk 0:00:45.2]} 34. Kf2 {[%clk 0:00:40.1]}
34... Rd7 {[%clk 0:00:44.2]} 35. Rc3+ {[%clk 0:00:38.6]} 35... Kb7 {[%clk
0:00:44.6]} 36. g4 {[%clk 0:00:30.1]} 36... hxg4 {[%clk 0:00:33.4]} 37. fxg4
{[%clk 0:00:31]} 37... Be6 {[%clk 0:00:33.9]} 38. Kg3 {[%clk 0:00:29.5]} 38...
Bd5 {[%clk 0:00:23.7]} 39. h5 {[%clk 0:00:29.5]} 39... Bc6 {[%clk 0:00:23.1]}
40. Re3 {[%clk 0:00:30]} 40... Rd8 {[%clk 0:00:19.4]} 41. Kh4 {[%clk 0:00:29.8]}
41... Re8 {[%clk 0:00:19.2]} 42. Rd3 {[%clk 0:00:29.4]} 42... Re7 {[%clk
0:00:19.3]} 43. Bd6 {[%clk 0:00:29.2]} 43... Rd7 {[%clk 0:00:18.8]} 44. Kg3
{[%clk 0:00:25.8]} 44... Be4 {[%clk 0:00:18.9]} 45. Rd2 {[%clk 0:00:24.3]} 45...
Kc6 {[%clk 0:00:18.8]} 46. Bf4 {[%clk 0:00:24.8]} 46... Rxd2 {[%clk 0:00:18.4]}
47. Bxd2 {[%clk 0:00:25.7]} 47... Bd5 {[%clk 0:00:18.6]} 48. b4 {[%clk 0:00:25]}
48... axb4 {[%clk 0:00:17.7]} 49. Bxb4 {[%clk 0:00:25.8]} 49... Bb3 {[%clk
0:00:16.8]} 50. Bf8 {[%clk 0:00:26.2]} 50... Bxa4 {[%clk 0:00:14.4]} 51. Bxg7
{[%clk 0:00:26.8]} 51... Bc2 {[%clk 0:00:13.6]} 52. Bxf6 {[%clk 0:00:26.1]}
52... Kd5 {[%clk 0:00:14.3]} 53. Kf4 {[%clk 0:00:26.2]} 53... Ke6 {[%clk
0:00:14.8]} 54. Bd4 {[%clk 0:00:26.3]} 54... b5 {[%clk 0:00:14.5]} 55. Kg5
{[%clk 0:00:26.9]} 55... Kf7 {[%clk 0:00:14.9]} 56. Kh6 {[%clk 0:00:27.4]} 56...
Kg8 {[%clk 0:00:15.1]} 57. g5 {[%clk 0:00:25.4]} 57... Bd1 {[%clk 0:00:14.1]}
58. Bc3 {[%clk 0:00:25.7]} 58... Be2 {[%clk 0:00:13.7]} 59. Kg6 {[%clk
0:00:25.7]} 59... Bd3+ {[%clk 0:00:13]} 60. Kh6 {[%clk 0:00:24.5]} 60... Be2
{[%clk 0:00:13.2]} 61. g6 {[%clk 0:00:24.6]} 61... Bd1 {[%clk 0:00:12.7]} 62.
Kg5 {[%clk 0:00:25.1]} 62... Bc2 {[%clk 0:00:07.3]} 63. h6 {[%clk 0:00:25]} 1-0

[Event "Late-Titled-Tuesday-Blitz-March-26-2024"]
[Site "Chess.com"]
[Date "2024.03.26"]
[Round "10"]
[White "rezamahdavi2008"]
[Black "Rud_Makarian"]
[Result "1-0"]
[WhiteElo "2898"]
[BlackElo "3088"]
[TimeControl "180+1"]
[EndTime "15:55:17 PDT"]
[Termination "rezamahdavi2008 won by checkmate"]

1. e4 {[%clk 0:03:00.9]} 1... c5 {[%clk 0:03:00.1]} 2. Nf3 {[%clk 0:03:00.7]}
2... d6 {[%clk 0:03:00.8]} 3. d4 {[%clk 0:03:01.2]} 3... cxd4 {[%clk 0:03:01.7]}
4. Nxd4 {[%clk 0:03:01.9]} 4... Nf6 {[%clk 0:03:02.5]} 5. Nc3 {[%clk 0:03:02.6]}
5... a6 {[%clk 0:03:03.1]} 6. Bg5 {[%clk 0:03:03.2]} 6... Nbd7 {[%clk
0:03:03.1]} 7. Bc4 {[%clk 0:02:58.6]} 7... e6 {[%clk 0:03:02.1]} 8. Qe2 {[%clk
0:02:53.6]} 8... h6 {[%clk 0:03:02.3]} 9. Bh4 {[%clk 0:02:50.6]} 9... Qa5 {[%clk
0:03:02]} 10. O-O-O {[%clk 0:02:38.1]} 10... Qh5 {[%clk 0:03:01.7]} 11. Qxh5
{[%clk 0:02:33.5]} 11... Nxh5 {[%clk 0:03:02.6]} 12. f3 {[%clk 0:02:29.3]} 12...
Ne5 {[%clk 0:02:58.5]} 13. Bb3 {[%clk 0:02:29]} 13... g5 {[%clk 0:02:54.2]} 14.
Bf2 {[%clk 0:02:28.5]} 14... Bd7 {[%clk 0:02:54.1]} 15. Rhe1 {[%clk 0:02:25]}
15... Rc8 {[%clk 0:02:50.2]} 16. Kb1 {[%clk 0:02:24.8]} 16... b5 {[%clk
0:02:48]} 17. a3 {[%clk 0:02:24.5]} 17... Be7 {[%clk 0:02:45.8]} 18. Nde2 {[%clk
0:02:25]} 18... Rg8 {[%clk 0:02:42.5]} 19. Rd2 {[%clk 0:02:23.9]} 19... Nf4
{[%clk 0:02:34.4]} 20. Nxf4 {[%clk 0:02:09.8]} 20... gxf4 {[%clk 0:02:35.3]} 21.
Bd4 {[%clk 0:02:10.6]} 21... Nc6 {[%clk 0:02:30.4]} 22. Bb6 {[%clk 0:02:06.1]}
22... Ne5 {[%clk 0:02:21.3]} 23. Red1 {[%clk 0:02:03]} 23... Nc4 {[%clk
0:02:13.7]} 24. Bxc4 {[%clk 0:02:02.5]} 24... Rxc4 {[%clk 0:02:14.3]} 25. Ba5
{[%clk 0:01:52]} 25... h5 {[%clk 0:02:00.4]} 26. Bb4 {[%clk 0:01:50]} 26... Rc6
{[%clk 0:01:59.9]} 27. Rg1 {[%clk 0:01:36.3]} 27... h4 {[%clk 0:01:57.9]} 28.
Ne2 {[%clk 0:01:31.8]} 28... e5 {[%clk 0:01:46.4]} 29. Nc3 {[%clk 0:01:31.9]}
29... Be6 {[%clk 0:01:41]} 30. Rgd1 {[%clk 0:01:21.5]} 30... Rg6 {[%clk
0:01:39.3]} 31. b3 {[%clk 0:01:19.9]} 31... Bd8 {[%clk 0:01:23.7]} 32. Kb2
{[%clk 0:01:18.3]} 32... Bb6 {[%clk 0:01:14.4]} 33. Bxd6 {[%clk 0:00:48.5]}
33... Bd4 {[%clk 0:01:04]} 34. Rxd4 {[%clk 0:00:48.2]} 34... exd4 {[%clk
0:01:04.1]} 35. Rxd4 {[%clk 0:00:49.1]} 35... Rxd6 {[%clk 0:00:36.2]} 36. Rxd6
{[%clk 0:00:48.9]} 36... Rxg2 {[%clk 0:00:37.1]} 37. Rxa6 {[%clk 0:00:39.1]}
37... Rxh2 {[%clk 0:00:37.5]} 38. Nxb5 {[%clk 0:00:39.3]} 38... Ke7 {[%clk
0:00:29.1]} 39. Ra8 {[%clk 0:00:38.5]} 39... Rf2 {[%clk 0:00:21.5]} 40. Rh8
{[%clk 0:00:37.8]} 40... h3 {[%clk 0:00:18.6]} 41. Nd4 {[%clk 0:00:38.3]} 41...
Bd7 {[%clk 0:00:19.1]} 42. a4 {[%clk 0:00:33.3]} 42... Kd6 {[%clk 0:00:15.8]}
43. Rh5 {[%clk 0:00:32.5]} 43... h2 {[%clk 0:00:13.3]} 44. a5 {[%clk 0:00:32.4]}
44... Bc8 {[%clk 0:00:13.4]} 45. b4 {[%clk 0:00:31.6]} 45... f5 {[%clk
0:00:10.9]} 46. exf5 {[%clk 0:00:28.6]} 46... Ke5 {[%clk 0:00:10.9]} 47. Kc3
{[%clk 0:00:27.8]} 47... Bb7 {[%clk 0:00:05.7]} 48. b5 {[%clk 0:00:26.3]} 48...
Bxf3 {[%clk 0:00:06.2]} 49. Rxh2 {[%clk 0:00:26.7]} 49... Rf1 {[%clk 0:00:04.5]}
50. a6 {[%clk 0:00:24.5]} 50... Be4 {[%clk 0:00:02.7]} 51. b6 {[%clk 0:00:23]}
51... Rb1 {[%clk 0:00:02.8]} 52. b7 {[%clk 0:00:22]} 52... Bxb7 {[%clk
0:00:02.7]} 53. axb7 {[%clk 0:00:22]} 53... Rxb7 {[%clk 0:00:03.6]} 54. Re2+
{[%clk 0:00:21.9]} 54... Kf6 {[%clk 0:00:04.2]} 55. Re6+ {[%clk 0:00:21.5]}
55... Kg5 {[%clk 0:00:04.8]} 56. Rg6+ {[%clk 0:00:22.2]} 56... Kh5 {[%clk
0:00:05.5]} 57. Rg1 {[%clk 0:00:22.1]} 57... Rf7 {[%clk 0:00:03.7]} 58. Kd3
{[%clk 0:00:22.3]} 58... Kh4 {[%clk 0:00:03.9]} 59. Ke4 {[%clk 0:00:22.7]} 59...
Kh3 {[%clk 0:00:04.6]} 60. Kxf4 {[%clk 0:00:23.1]} 60... Rf8 {[%clk 0:00:01.3]}
61. Rg3+ {[%clk 0:00:22.9]} 61... Kh4 {[%clk 0:00:01.9]} 62. Nf3+ {[%clk
0:00:23]} 62... Kh5 {[%clk 0:00:02.8]} 63. Rh3# {[%clk 0:00:23.7]} 1-0